[Event "Live Chess"]
[Site "Chess.com"]
[Date "2010.12.03"]
[Round "-"]
[White "hipposcottimus"]
[Black "ez_one"]
[Result "0-1"]
[CurrentPosition "5r1k/p3B2p/2p3p1/3B4/4R3/1P6/P1Q3PP/b4qK1 w - -"]
[Timezone "UTC"]
[ECO "B00"]
[ECOUrl "https://www.chess.com/openings/Kings-Pawn-Opening-Barnes-Defense-2.d4"]
[UTCDate "2010.12.03"]
[UTCTime "04:20:36"]
[WhiteElo "1637"]
[BlackElo "1910"]
[TimeControl "60"]
[Termination "ez_one won by checkmate"]
[StartTime "04:20:36"]
[EndDate "2010.12.03"]
[EndTime "04:22:33"]
[Link "https://www.chess.com/game/live/73528585"]

1. e4 {[%clk 0:01:00]} 1... f6 {[%clk 0:01:00]} 2. d4 {[%clk 0:00:58.6]} 2... e5 {[%clk 0:00:59.7]} 3. dxe5 {[%clk 0:00:57.5]} 3... fxe5 {[%clk 0:00:58.5]} 4. f4 {[%clk 0:00:57.3]} 4... exf4 {[%clk 0:00:57.2]} 5. Bxf4 {[%clk 0:00:57]} 5... d6 {[%clk 0:00:56.5]} 6. Nf3 {[%clk 0:00:55.8]} 6... Be6 {[%clk 0:00:55.5]} 7. c4 {[%clk 0:00:54.4]} 7... Nc6 {[%clk 0:00:53.7]} 8. Nc3 {[%clk 0:00:53.5]} 8... Qd7 {[%clk 0:00:53]} 9. Nd5 {[%clk 0:00:52.2]} 9... Bxd5 {[%clk 0:00:51.6]} 10. cxd5 {[%clk 0:00:51.3]} 10... Nce7 {[%clk 0:00:49.7]} 11. Bb5 {[%clk 0:00:51]} 11... c6 {[%clk 0:00:48.2]} 12. dxc6 {[%clk 0:00:48.9]} 12... bxc6 {[%clk 0:00:46.9]} 13. Bd3 {[%clk 0:00:47.4]} 13... Ng6 {[%clk 0:00:44.6]} 14. Bg5 {[%clk 0:00:46]} 14... Nf6 {[%clk 0:00:42.8]} 15. e5 {[%clk 0:00:45]} 15... Nxe5 {[%clk 0:00:40.7]} 16. Nxe5 {[%clk 0:00:42.8]} 16... dxe5 {[%clk 0:00:40]} 17. O-O {[%clk 0:00:36.6]} 17... g6 {[%clk 0:00:36.7]} 18. Re1 {[%clk 0:00:35.4]} 18... Qe6 {[%clk 0:00:30.8]} 19. Qc2 {[%clk 0:00:31]} 19... Bg7 {[%clk 0:00:28.6]} 20. Qd2 {[%clk 0:00:30]} 20... O-O {[%clk 0:00:26]} 21. b3 {[%clk 0:00:26.2]} 21... Rad8 {[%clk 0:00:24.5]} 22. Qc2 {[%clk 0:00:24.1]} 22... e4 {[%clk 0:00:23.3]} 23. Bc4 {[%clk 0:00:23]} 23... Nd5 {[%clk 0:00:13.4]} 24. Rxe4 {[%clk 0:00:21.9]} 24... Qf5 {[%clk 0:00:10.9]} 25. Bxd8 {[%clk 0:00:19.7]} 25... Kh8 {[%clk 0:00:07.1]} 26. Bxd5 {[%clk 0:00:17]} 26... Bxa1 {[%clk 0:00:05.4]} 27. Be7 {[%clk 0:00:12.5]} 27... Qf1# {[%clk 0:00:04.3]} 0-1

[Event "Live Chess"]
[Site "Chess.com"]
[Date "2010.12.03"]
[Round "-"]
[White "ez_one"]
[Black "hipposcottimus"]
[Result "0-1"]
[CurrentPosition "r5k1/ppp3pp/2n5/4p3/1PP5/1P1p2Pn/4q2P/R1B1KR2 w - -"]
[Timezone "UTC"]
[ECO "C21"]
[ECOUrl "https://www.chess.com/openings/Center-Game"]
[UTCDate "2010.12.03"]
[UTCTime "04:18:44"]
[WhiteElo "1910"]
[BlackElo "1637"]
[TimeControl "60"]
[Termination "hipposcottimus won by checkmate"]
[StartTime "04:18:44"]
[EndDate "2010.12.03"]
[EndTime "04:20:15"]
[Link "https://www.chess.com/game/live/73528222"]

1. d4 {[%clk 0:01:00]} 1... e5 {[%clk 0:01:00]} 2. e4 {[%clk 0:00:58.4]} 2... d5 {[%clk 0:00:58.5]} 3. dxe5 {[%clk 0:00:56.9]} 3... d4 {[%clk 0:00:56.1]} 4. c4 {[%clk 0:00:55.2]} 4... Be6 {[%clk 0:00:54.4]} 5. b3 {[%clk 0:00:53.1]} 5... f6 {[%clk 0:00:54.1]} 6. Bb2 {[%clk 0:00:52.1]} 6... fxe5 {[%clk 0:00:53.1]} 7. Nf3 {[%clk 0:00:50.5]} 7... Nc6 {[%clk 0:00:52.5]} 8. Nbd2 {[%clk 0:00:48.4]} 8... Bg4 {[%clk 0:00:51.5]} 9. Be2 {[%clk 0:00:47.6]} 9... Bxf3 {[%clk 0:00:50.4]} 10. Nxf3 {[%clk 0:00:46.2]} 10... Nf6 {[%clk 0:00:50.1]} 11. Bd3 {[%clk 0:00:44.8]} 11... Bb4+ {[%clk 0:00:49.7]} 12. Kf1 {[%clk 0:00:42.7]} 12... O-O {[%clk 0:00:48.6]} 13. g3 {[%clk 0:00:42.1]} 13... Qd7 {[%clk 0:00:44.5]} 14. Kg2 {[%clk 0:00:41.4]} 14... Nh5 {[%clk 0:00:42.5]} 15. a3 {[%clk 0:00:40.3]} 15... Qg4 {[%clk 0:00:41.6]} 16. axb4 {[%clk 0:00:38.2]} 16... Nf4+ {[%clk 0:00:40.7]} 17. Kg1 {[%clk 0:00:35.8]} 17... Nh3+ {[%clk 0:00:39]} 18. Kf1 {[%clk 0:00:34.5]} 18... Rxf3 {[%clk 0:00:34.9]} 19. Be2 {[%clk 0:00:32.4]} 19... Rxf2+ {[%clk 0:00:33.5]} 20. Ke1 {[%clk 0:00:30.8]} 20... Qxe4 {[%clk 0:00:27.5]} 21. Bc1 {[%clk 0:00:26.3]} 21... d3 {[%clk 0:00:26.5]} 22. Rf1 {[%clk 0:00:21]} 22... Rxe2+ {[%clk 0:00:22.5]} 23. Qxe2 {[%clk 0:00:19]} 23... Qxe2# {[%clk 0:00:21.7]} 0-1

[Event "Live Chess"]
[Site "Chess.com"]
[Date "2010.12.03"]
[Round "-"]
[White "hipposcottimus"]
[Black "ez_one"]
[Result "0-1"]
[CurrentPosition "5r2/6p1/3p1p1k/3NpP1P/p7/Pp4N1/3r3P/5RK1 w - -"]
[Timezone "UTC"]
[ECO "B50"]
[ECOUrl "https://www.chess.com/openings/Sicilian-Defense-2.Nf3-d6"]
[UTCDate "2010.12.03"]
[UTCTime "04:16:26"]
[WhiteElo "1637"]
[BlackElo "1910"]
[TimeControl "60"]
[Termination "ez_one won on time"]
[StartTime "04:16:26"]
[EndDate "2010.12.03"]
[EndTime "04:18:31"]
[Link "https://www.chess.com/game/live/73527776"]

1. e4 {[%clk 0:01:00]} 1... d6 {[%clk 0:01:00]} 2. Nf3 {[%clk 0:00:59.7]} 2... c5 {[%clk 0:00:59.2]} 3. d4 {[%clk 0:00:59.1]} 3... cxd4 {[%clk 0:00:56.9]} 4. Bb5+ {[%clk 0:00:58.6]} 4... Bd7 {[%clk 0:00:55.1]} 5. Nxd4 {[%clk 0:00:57.5]} 5... Bxb5 {[%clk 0:00:53.1]} 6. Nxb5 {[%clk 0:00:57.2]} 6... Nf6 {[%clk 0:00:51.9]} 7. N5c3 {[%clk 0:00:56.9]} 7... e5 {[%clk 0:00:51]} 8. Bg5 {[%clk 0:00:55.2]} 8... Be7 {[%clk 0:00:50.2]} 9. O-O {[%clk 0:00:54.6]} 9... O-O {[%clk 0:00:49.3]} 10. f4 {[%clk 0:00:53.1]} 10... h6 {[%clk 0:00:48.9]} 11. Bh4 {[%clk 0:00:50.2]} 11... Kh7 {[%clk 0:00:42.4]} 12. f5 {[%clk 0:00:46.9]} 12... Rg8 {[%clk 0:00:41.6]} 13. Qf3 {[%clk 0:00:44.2]} 13... Nc6 {[%clk 0:00:40.6]} 14. Nd2 {[%clk 0:00:39.4]} 14... Nd4 {[%clk 0:00:40.2]} 15. Qg3 {[%clk 0:00:37.9]} 15... Nxc2 {[%clk 0:00:38]} 16. Rac1 {[%clk 0:00:37.5]} 16... Nd4 {[%clk 0:00:36.8]} 17. Nb3 {[%clk 0:00:35.5]} 17... Ne2+ {[%clk 0:00:35.9]} 18. Nxe2 {[%clk 0:00:34.1]} 18... Nxe4 {[%clk 0:00:34.5]} 19. Bxe7 {[%clk 0:00:14.5]} 19... Nxg3 {[%clk 0:00:30.9]} 20. Bxd8 {[%clk 0:00:13.8]} 20... Nxf1 {[%clk 0:00:29.8]} 21. Kxf1 {[%clk 0:00:13.5]} 21... Raxd8 {[%clk 0:00:28.5]} 22. Nc3 {[%clk 0:00:11.5]} 22... f6 {[%clk 0:00:27.8]} 23. Nd5 {[%clk 0:00:11.2]} 23... Rgf8 {[%clk 0:00:26.8]} 24. Re1 {[%clk 0:00:10.8]} 24... h5 {[%clk 0:00:24.7]} 25. Kg1 {[%clk 0:00:10.5]} 25... Kh6 {[%clk 0:00:22.4]} 26. Rf1 {[%clk 0:00:10.1]} 26... b5 {[%clk 0:00:21.6]} 27. Nd2 {[%clk 0:00:09.2]} 27... a5 {[%clk 0:00:20.6]} 28. Ne4 {[%clk 0:00:08.3]} 28... b4 {[%clk 0:00:19.4]} 29. Ng3 {[%clk 0:00:07.6]} 29... a4 {[%clk 0:00:17.2]} 30. Ne2 {[%clk 0:00:06.9]} 30... b3 {[%clk 0:00:16.5]} 31. a3 {[%clk 0:00:05.5]} 31... Rc8 {[%clk 0:00:14.7]} 32. g4 {[%clk 0:00:05.2]} 32... Rc2 {[%clk 0:00:13.5]} 33. Ng3 {[%clk 0:00:03.6]} 33... Rxb2 {[%clk 0:00:12.4]} 34. gxh5 {[%clk 0:00:01.8]} 34... Rd2 {[%clk 0:00:10.7]} 0-1

[Event "Live Chess"]
[Site "Chess.com"]
[Date "2010.12.03"]
[Round "-"]
[White "hipposcottimus"]
[Black "inpresso"]
[Result "0-1"]
[CurrentPosition "2kr1b1r/ppp1qppp/2np4/8/2QpPn2/5N2/PPP2PPP/R1B2K1R w - -"]
[Timezone "UTC"]
[ECO "C42"]
[ECOUrl "https://www.chess.com/openings/Petrovs-Defense-Urusov-Gambit"]
[UTCDate "2010.12.03"]
[UTCTime "04:06:45"]
[WhiteElo "1637"]
[BlackElo "1330"]
[TimeControl "120"]
[Termination "inpresso won by resignation"]
[StartTime "04:06:45"]
[EndDate "2010.12.03"]
[EndTime "04:08:07"]
[Link "https://www.chess.com/game/live/73525930"]

1. e4 {[%clk 0:02:00]} 1... e5 {[%clk 0:02:00]} 2. Nf3 {[%clk 0:01:59.6]} 2... Nf6 {[%clk 0:01:59.5]} 3. Bc4 {[%clk 0:01:57.6]} 3... d6 {[%clk 0:01:58.8]} 4. Ng5 {[%clk 0:01:53.1]} 4... Be6 {[%clk 0:01:54.8]} 5. Qe2 {[%clk 0:01:46.3]} 5... Bxc4 {[%clk 0:01:51.9]} 6. Qxc4 {[%clk 0:01:46]} 6... Qe7 {[%clk 0:01:49.1]} 7. Nc3 {[%clk 0:01:42.1]} 7... Nc6 {[%clk 0:01:43.1]} 8. Nd5 {[%clk 0:01:39.2]} 8... Nxd5 {[%clk 0:01:41.9]} 9. Nf3 {[%clk 0:01:25.6]} 9... Nf4 {[%clk 0:01:35.6]} 10. d4 {[%clk 0:01:24.8]} 10... O-O-O {[%clk 0:01:25.4]} 11. Kf1 {[%clk 0:01:21.4]} 11... exd4 {[%clk 0:01:22.2]} 0-1

[Event "Live Chess"]
[Site "Chess.com"]
[Date "2010.12.03"]
[Round "-"]
[White "inpresso"]
[Black "hipposcottimus"]
[Result "1-0"]
[CurrentPosition "r4rk1/ppp3Qp/5p2/5P1N/8/3q4/6PP/5R1K b - -"]
[Timezone "UTC"]
[ECO "C44"]
[ECOUrl "https://www.chess.com/openings/Kings-Pawn-Opening-Kings-Knight-Variation-2...Nc6-3.d3-Nf6"]
[UTCDate "2010.12.03"]
[UTCTime "04:04:19"]
[WhiteElo "1315"]
[BlackElo "1650"]
[TimeControl "120"]
[Termination "inpresso won by checkmate"]
[StartTime "04:04:19"]
[EndDate "2010.12.03"]
[EndTime "04:06:31"]
[Link "https://www.chess.com/game/live/73525451"]

1. e4 {[%clk 0:02:00]} 1... e5 {[%clk 0:02:00]} 2. Nf3 {[%clk 0:01:59.5]} 2... Nc6 {[%clk 0:01:59.7]} 3. d3 {[%clk 0:01:59.1]} 3... Nf6 {[%clk 0:01:59.4]} 4. Nc3 {[%clk 0:01:58.3]} 4... Bb4 {[%clk 0:01:57.2]} 5. Bg5 {[%clk 0:01:57.8]} 5... d5 {[%clk 0:01:55.9]} 6. a3 {[%clk 0:01:56.7]} 6... Ba5 {[%clk 0:01:53.1]} 7. b4 {[%clk 0:01:55.2]} 7... Nxb4 {[%clk 0:01:50]} 8. axb4 {[%clk 0:01:53.6]} 8... Bxb4 {[%clk 0:01:49.4]} 9. Bxf6 {[%clk 0:01:51.2]} 9... Qxf6 {[%clk 0:01:48.9]} 10. Be2 {[%clk 0:01:50.4]} 10... Bxc3+ {[%clk 0:01:47.6]} 11. Nd2 {[%clk 0:01:47.1]} 11... Bxa1 {[%clk 0:01:46.4]} 12. Qxa1 {[%clk 0:01:46.4]} 12... dxe4 {[%clk 0:01:46.1]} 13. Nxe4 {[%clk 0:01:41.3]} 13... Qg6 {[%clk 0:01:38.4]} 14. Qxe5+ {[%clk 0:01:39.4]} 14... Be6 {[%clk 0:01:36.7]} 15. O-O {[%clk 0:01:34.4]} 15... O-O {[%clk 0:01:34.6]} 16. f4 {[%clk 0:01:31]} 16... Bh3 {[%clk 0:01:30.8]} 17. Bf3 {[%clk 0:01:28]} 17... Bg4 {[%clk 0:01:27.6]} 18. Bxg4 {[%clk 0:01:26.1]} 18... Qxg4 {[%clk 0:01:26.1]} 19. Qg5 {[%clk 0:01:24.5]} 19... Qe6 {[%clk 0:01:22.3]} 20. f5 {[%clk 0:01:20.7]} 20... Qb6+ {[%clk 0:01:16.8]} 21. Kh1 {[%clk 0:01:14.8]} 21... f6 {[%clk 0:01:16.4]} 22. Qg4 {[%clk 0:01:09.2]} 22... Qb2 {[%clk 0:01:08]} 23. Ng3 {[%clk 0:01:00.4]} 23... Qxc2 {[%clk 0:01:05.8]} 24. Nh5 {[%clk 0:00:58.2]} 24... Qxd3 {[%clk 0:01:04.5]} 25. Qxg7# {[%clk 0:00:56.5]} 1-0

[Event "Live Chess"]
[Site "Chess.com"]
[Date "2010.12.03"]
[Round "-"]
[White "usandhis"]
[Black "hipposcottimus"]
[Result "1-0"]
[CurrentPosition "3Q2k1/p5pp/4P1p1/3n4/3P1b1P/3P1P2/PP2BP2/5K2 b - -"]
[Timezone "UTC"]
[ECO "C44"]
[ECOUrl "https://www.chess.com/openings/Kings-Pawn-Opening-Kings-Knight-Variation-2...Nc6-3.d3-Nf6"]
[UTCDate "2010.12.03"]
[UTCTime "02:10:05"]
[WhiteElo "1467"]
[BlackElo "1663"]
[TimeControl "60"]
[Termination "usandhis won by checkmate"]
[StartTime "02:10:05"]
[EndDate "2010.12.03"]
[EndTime "02:12:08"]
[Link "https://www.chess.com/game/live/73502005"]

1. e4 {[%clk 0:01:00]} 1... e5 {[%clk 0:01:00]} 2. Nf3 {[%clk 0:00:58.9]} 2... Nc6 {[%clk 0:00:59.5]} 3. d3 {[%clk 0:00:58.4]} 3... Nf6 {[%clk 0:00:59]} 4. Be3 {[%clk 0:00:58]} 4... d5 {[%clk 0:00:58.6]} 5. Nc3 {[%clk 0:00:57.7]} 5... d4 {[%clk 0:00:58]} 6. Bxd4 {[%clk 0:00:57.4]} 6... exd4 {[%clk 0:00:57.5]} 7. Ne2 {[%clk 0:00:56.5]} 7... Bd6 {[%clk 0:00:55.3]} 8. c3 {[%clk 0:00:56]} 8... O-O {[%clk 0:00:52.9]} 9. Nexd4 {[%clk 0:00:55]} 9... Nxd4 {[%clk 0:00:47.4]} 10. e5 {[%clk 0:00:54.2]} 10... Re8 {[%clk 0:00:42.1]} 11. cxd4 {[%clk 0:00:50.3]} 11... Bg4 {[%clk 0:00:38.8]} 12. Be2 {[%clk 0:00:48.7]} 12... Bxf3 {[%clk 0:00:36.6]} 13. gxf3 {[%clk 0:00:47.8]} 13... Bb4+ {[%clk 0:00:36]} 14. Kf1 {[%clk 0:00:43.1]} 14... Nd5 {[%clk 0:00:32.3]} 15. Qb3 {[%clk 0:00:39.3]} 15... Be7 {[%clk 0:00:21.1]} 16. Rc1 {[%clk 0:00:38.2]} 16... Bg5 {[%clk 0:00:18.1]} 17. Rc2 {[%clk 0:00:36.4]} 17... Bf4 {[%clk 0:00:17.2]} 18. Qc4 {[%clk 0:00:34]} 18... b6 {[%clk 0:00:15.3]} 19. Rg1 {[%clk 0:00:29.8]} 19... b5 {[%clk 0:00:14.9]} 20. Qxb5 {[%clk 0:00:27.8]} 20... c6 {[%clk 0:00:13.4]} 21. Qxc6 {[%clk 0:00:26.1]} 21... Rc8 {[%clk 0:00:13.1]} 22. Qa4 {[%clk 0:00:22.7]} 22... Rxc2 {[%clk 0:00:12]} 23. Qxc2 {[%clk 0:00:21.6]} 23... Re6 {[%clk 0:00:09.7]} 24. Qc4 {[%clk 0:00:19.3]} 24... Rg6 {[%clk 0:00:09.1]} 25. Rxg6 {[%clk 0:00:17.4]} 25... fxg6 {[%clk 0:00:08.5]} 26. h4 {[%clk 0:00:15.2]} 26... Qd7 {[%clk 0:00:08.2]} 27. e6 {[%clk 0:00:12.4]} 27... Qd6 {[%clk 0:00:06.3]} 28. Qc8+ {[%clk 0:00:10.7]} 28... Qd8 {[%clk 0:00:02.6]} 29. Qxd8# {[%clk 0:00:08.9]} 1-0

[Event "Live Chess"]
[Site "Chess.com"]
[Date "2010.12.03"]
[Round "-"]
[White "hipposcottimus"]
[Black "Computer4-IMPOSSIBLE"]
[Result "0-1"]
[CurrentPosition "6k1/5ppp/p4b2/1pp5/2P5/1P1r4/P1b1r1PP/7K w - -"]
[Timezone "UTC"]
[ECO "B27"]
[ECOUrl "https://www.chess.com/openings/Sicilian-Defense-Katalimov-Variation-3.c4"]
[UTCDate "2010.12.03"]
[UTCTime "02:06:47"]
[WhiteElo "1674"]
[BlackElo "2375"]
[TimeControl "120+1"]
[Termination "Computer4-IMPOSSIBLE won by resignation"]
[StartTime "02:06:47"]
[EndDate "2010.12.03"]
[EndTime "02:09:39"]
[Link "https://www.chess.com/game/live/73501346"]

1. e4 {[%clk 0:02:00]} 1... c5 {[%clk 0:02:00]} 2. Nf3 {[%clk 0:02:00.5]} 2... b6 {[%clk 0:01:58.5]} 3. c4 {[%clk 0:01:59.4]} 3... Nc6 {[%clk 0:01:57.4]} 4. Nc3 {[%clk 0:01:59.4]} 4... Nf6 {[%clk 0:01:56.9]} 5. d3 {[%clk 0:01:59.9]} 5... e5 {[%clk 0:01:56.4]} 6. Be2 {[%clk 0:02:00.5]} 6... Be7 {[%clk 0:01:56.4]} 7. O-O {[%clk 0:02:00.7]} 7... d6 {[%clk 0:01:55]} 8. Ne1 {[%clk 0:02:01.4]} 8... O-O {[%clk 0:01:53.7]} 9. f4 {[%clk 0:02:02]} 9... Bd7 {[%clk 0:01:52.2]} 10. fxe5 {[%clk 0:02:02]} 10... dxe5 {[%clk 0:01:51.8]} 11. Nf3 {[%clk 0:02:02.1]} 11... a6 {[%clk 0:01:51.6]} 12. Nd5 {[%clk 0:02:02.3]} 12... b5 {[%clk 0:01:51.1]} 13. b3 {[%clk 0:02:00.4]} 13... Re8 {[%clk 0:01:49.2]} 14. Bg5 {[%clk 0:01:52.3]} 14... Nxd5 {[%clk 0:01:47.3]} 15. exd5 {[%clk 0:01:48.1]} 15... Bxg5 {[%clk 0:01:46.1]} 16. dxc6 {[%clk 0:01:46.9]} 16... Be3+ {[%clk 0:01:44.9]} 17. Kh1 {[%clk 0:01:45.9]} 17... Bxc6 {[%clk 0:01:43.2]} 18. Re1 {[%clk 0:01:34.2]} 18... Qf6 {[%clk 0:01:41.8]} 19. Ng1 {[%clk 0:01:26.8]} 19... Bd4 {[%clk 0:01:41.8]} 20. Bf3 {[%clk 0:01:24]} 20... e4 {[%clk 0:01:41.1]} 21. dxe4 {[%clk 0:01:23.5]} 21... Rad8 {[%clk 0:01:41.1]} 22. Qc2 {[%clk 0:01:21.2]} 22... Bxa1 {[%clk 0:01:40.5]} 23. Rf1 {[%clk 0:01:10.6]} 23... Bxe4 {[%clk 0:01:38.7]} 24. Be2 {[%clk 0:00:44.5]} 24... Bxc2 {[%clk 0:01:38.6]} 25. Rxf6 {[%clk 0:00:42.7]} 25... Bxf6 {[%clk 0:01:36.7]} 26. Bd3 {[%clk 0:00:41.5]} 26... Rxd3 {[%clk 0:01:35.1]} 27. Ne2 {[%clk 0:00:41.6]} 27... Rxe2 {[%clk 0:01:34.1]} 0-1

[Event "Live Chess"]
[Site "Chess.com"]
[Date "2010.12.03"]
[Round "-"]
[White "Computer4-IMPOSSIBLE"]
[Black "hipposcottimus"]
[Result "1-0"]
[CurrentPosition "7k/6pp/8/2nQ2B1/8/PB3P2/7P/R2K2NR b - -"]
[Timezone "UTC"]
[ECO "A20"]
[ECOUrl "https://www.chess.com/openings/English-Opening-Kings-English-Variation-2.g3"]
[UTCDate "2010.12.03"]
[UTCTime "02:03:51"]
[WhiteElo "2375"]
[BlackElo "1674"]
[TimeControl "120+1"]
[Termination "Computer4-IMPOSSIBLE won by resignation"]
[StartTime "02:03:51"]
[EndDate "2010.12.03"]
[EndTime "02:06:40"]
[Link "https://www.chess.com/game/live/73500774"]

1. g3 {[%clk 0:02:00]} 1... e5 {[%clk 0:02:00]} 2. c4 {[%clk 0:01:59.1]} 2... d5 {[%clk 0:02:00.7]} 3. cxd5 {[%clk 0:01:57.7]} 3... Nf6 {[%clk 0:02:01.4]} 4. Qa4+ {[%clk 0:01:56.6]} 4... Bd7 {[%clk 0:02:00.8]} 5. Qb3 {[%clk 0:01:56.5]} 5... Bd6 {[%clk 0:01:58.1]} 6. Qxb7 {[%clk 0:01:55.3]} 6... Nxd5 {[%clk 0:01:45.9]} 7. Qxa8 {[%clk 0:01:54.9]} 7... Bc6 {[%clk 0:01:46.2]} 8. Qxa7 {[%clk 0:01:54.9]} 8... O-O {[%clk 0:01:37.5]} 9. f3 {[%clk 0:01:54.3]} 9... f5 {[%clk 0:01:33.2]} 10. Nc3 {[%clk 0:01:54.3]} 10... Nb4 {[%clk 0:01:26.1]} 11. Kd1 {[%clk 0:01:54.3]} 11... N8a6 {[%clk 0:01:18.7]} 12. Qf2 {[%clk 0:01:53.7]} 12... Bc5 {[%clk 0:01:17]} 13. e3 {[%clk 0:01:53.4]} 13... f4 {[%clk 0:01:16.6]} 14. gxf4 {[%clk 0:01:52]} 14... exf4 {[%clk 0:01:16.7]} 15. d4 {[%clk 0:01:50.1]} 15... fxe3 {[%clk 0:01:15.5]} 16. Bxe3 {[%clk 0:01:48.7]} 16... Bd6 {[%clk 0:01:08.3]} 17. Bc4+ {[%clk 0:01:48.6]} 17... Kh8 {[%clk 0:01:07.6]} 18. a3 {[%clk 0:01:47.6]} 18... Be4 {[%clk 0:01:07.8]} 19. Nxe4 {[%clk 0:01:46.8]} 19... c5 {[%clk 0:01:02.8]} 20. Bg5 {[%clk 0:01:46.2]} 20... Qa5 {[%clk 0:00:58.7]} 21. Nxd6 {[%clk 0:01:46.1]} 21... cxd4 {[%clk 0:00:50.6]} 22. Nf7+ {[%clk 0:01:44.5]} 22... Rxf7 {[%clk 0:00:49.5]} 23. Bxf7 {[%clk 0:01:43.8]} 23... Nc5 {[%clk 0:00:47.5]} 24. Qxd4 {[%clk 0:01:43.8]} 24... Qa4+ {[%clk 0:00:42.4]} 25. b3 {[%clk 0:01:41.9]} 25... Qxb3+ {[%clk 0:00:40.2]} 26. Bxb3 {[%clk 0:01:41.9]} 26... Nd5 {[%clk 0:00:36]} 27. Qxd5 {[%clk 0:01:41.4]} 1-0

[Event "Live Chess"]
[Site "Chess.com"]
[Date "2010.12.03"]
[Round "-"]
[White "ShoneCAR"]
[Black "hipposcottimus"]
[Result "1-0"]
[CurrentPosition "4k3/1Q6/4K1p1/2N3pp/8/5P2/6PP/8 b - -"]
[Timezone "UTC"]
[ECO "C24"]
[ECOUrl "https://www.chess.com/openings/Bishops-Opening-Berlin-Defense"]
[UTCDate "2010.12.03"]
[UTCTime "01:27:55"]
[WhiteElo "1696"]
[BlackElo "1674"]
[TimeControl "60"]
[Termination "ShoneCAR won on time"]
[StartTime "01:27:55"]
[EndDate "2010.12.03"]
[EndTime "01:29:44"]
[Link "https://www.chess.com/game/live/73493188"]

1. e4 {[%clk 0:01:00]} 1... e5 {[%clk 0:01:00]} 2. Bc4 {[%clk 0:00:59.5]} 2... Nf6 {[%clk 0:00:58]} 3. Qf3 {[%clk 0:00:59.1]} 3... Nc6 {[%clk 0:00:57.7]} 4. Nh3 {[%clk 0:00:58.4]} 4... Nd4 {[%clk 0:00:57.4]} 5. Qc3 {[%clk 0:00:57.7]} 5... b5 {[%clk 0:00:56.7]} 6. Bb3 {[%clk 0:00:55.9]} 6... d5 {[%clk 0:00:55.6]} 7. exd5 {[%clk 0:00:54.9]} 7... Nxd5 {[%clk 0:00:54.4]} 8. Bxd5 {[%clk 0:00:54.2]} 8... Qxd5 {[%clk 0:00:54.1]} 9. f3 {[%clk 0:00:52.6]} 9... b4 {[%clk 0:00:49.7]} 10. Qd3 {[%clk 0:00:51.6]} 10... Bc5 {[%clk 0:00:46.2]} 11. a3 {[%clk 0:00:50.1]} 11... O-O {[%clk 0:00:44.7]} 12. axb4 {[%clk 0:00:49.5]} 12... Bxb4 {[%clk 0:00:44.3]} 13. Nc3 {[%clk 0:00:49.2]} 13... a5 {[%clk 0:00:42.8]} 14. Nxd5 {[%clk 0:00:48.2]} 14... Ba6 {[%clk 0:00:42.5]} 15. Nxc7 {[%clk 0:00:47.4]} 15... Bxd3 {[%clk 0:00:41.8]} 16. Nxa8 {[%clk 0:00:46.7]} 16... Bxc2 {[%clk 0:00:41.3]} 17. Nc7 {[%clk 0:00:43.6]} 17... Rc8 {[%clk 0:00:39.3]} 18. Nd5 {[%clk 0:00:40.8]} 18... Bg6 {[%clk 0:00:38.6]} 19. Nxb4 {[%clk 0:00:39.9]} 19... Rc4 {[%clk 0:00:36.9]} 20. Nd5 {[%clk 0:00:37.6]} 20... Nc2+ {[%clk 0:00:35.9]} 21. Kf2 {[%clk 0:00:36]} 21... Nxa1 {[%clk 0:00:35.3]} 22. Ne7+ {[%clk 0:00:35.4]} 22... Kf8 {[%clk 0:00:33.2]} 23. Nxg6+ {[%clk 0:00:35.1]} 23... fxg6 {[%clk 0:00:31.3]} 24. d3 {[%clk 0:00:34.1]} 24... Rc2+ {[%clk 0:00:29.2]} 25. Kg3 {[%clk 0:00:33]} 25... Nb3 {[%clk 0:00:28.8]} 26. Bg5 {[%clk 0:00:31.1]} 26... Nd2 {[%clk 0:00:27.1]} 27. Bxd2 {[%clk 0:00:30]} 27... Rxd2 {[%clk 0:00:26.8]} 28. Nf2 {[%clk 0:00:29.5]} 28... Rxd3 {[%clk 0:00:26.5]} 29. Rd1 {[%clk 0:00:28.4]} 29... e4 {[%clk 0:00:26.3]} 30. Rxd3 {[%clk 0:00:27.5]} 30... exd3 {[%clk 0:00:26]} 31. Nxd3 {[%clk 0:00:27]} 31... Kf7 {[%clk 0:00:25.7]} 32. Nc5 {[%clk 0:00:26.5]} 32... Kf6 {[%clk 0:00:25.5]} 33. Kf4 {[%clk 0:00:26.3]} 33... a4 {[%clk 0:00:25]} 34. Nxa4 {[%clk 0:00:25.3]} 34... g5+ {[%clk 0:00:24.5]} 35. Ke4 {[%clk 0:00:24.6]} 35... g6 {[%clk 0:00:24.2]} 36. Nc5 {[%clk 0:00:23.9]} 36... h5 {[%clk 0:00:23.9]} 37. b4 {[%clk 0:00:23.2]} 37... Kg7 {[%clk 0:00:23.5]} 38. b5 {[%clk 0:00:22.7]} 38... Kf8 {[%clk 0:00:23.2]} 39. b6 {[%clk 0:00:22.3]} 39... Ke8 {[%clk 0:00:23]} 40. b7 {[%clk 0:00:21.7]} 40... Kd8 {[%clk 0:00:22.7]} 41. b8=Q+ {[%clk 0:00:20.7]} 41... Ke7 {[%clk 0:00:22.3]} 42. Qb6 {[%clk 0:00:20]} 42... Kf7 {[%clk 0:00:21.3]} 43. Ke5 {[%clk 0:00:19.4]} 43... Ke7 {[%clk 0:00:20.8]} 44. Qb7+ {[%clk 0:00:18.3]} 44... Kf8 {[%clk 0:00:19.5]} 45. Kf6 {[%clk 0:00:17.7]} 45... Ke8 {[%clk 0:00:18.2]} 46. Ke6 {[%clk 0:00:15.9]} 1-0